bitfinex/quotes_BTCUSD_20240901
["timestamp","ask_amount","ask_price","bid_price","bid_amount"]
[1725203120923,0.03001372,58090.0,58089.0,0.33425377]
[1725203121167,0.03001372,58090.0,58089.0,0.16010477]
[1725203121386,0.03001372,58090.0,58089.0,0.16210477]
[1725203122292,0.03001372,58090.0,58089.0,0.33425377]
[1725203123728,0.003,58090.0,58089.0,0.33425377]
[1725203123957,0.003,58090.0,58089.0,0.16010477]
[1725203124183,0.175146,58090.0,58089.0,0.16010477]
[1725203124628,0.003,58090.0,58089.0,0.16010477]
[1725203125308,0.519439,58090.0,58089.0,0.16010477]
[1725203125558,0.519439,58090.0,58085.0,0.1911]
[1725203125559,0.516475,58086.0,58085.0,0.16410477]
[1725203126874,0.516475,58086.0,58085.0,0.17010477]
[1725203127365,0.516475,58086.0,58085.0,0.17210477]
[1725203128249,0.172158,58086.0,58085.0,0.17210477]
[1725203128485,0.19917177,58086.0,58085.0,0.17210477]
[1725203129802,0.19917177,58086.0,58085.0,0.17410477]
[1725203130453,0.19998877,58086.0,58085.0,0.17410477]
[1725203131126,0.02783077,58086.0,58085.0,0.89628777]
[1725203131354,0.02783077,58086.0,58085.0,0.89428777]
[1725203131355,0.000817,58086.0,58085.0,0.89428777]
[1725203131790,0.000817,58086.0,58085.0,1.23860977]
[1725203132234,0.000817,58086.0,58085.0,0.89628777]
[1725203132671,0.000817,58086.0,58085.0,1.24060977]
[1725203132892,0.000817,58086.0,58085.0,1.23860977]
[1725203133530,0.000817,58086.0,58085.0,1.24060977]
[1725203134176,0.000817,58086.0,58085.0,1.58293177]
[1725203135276,0.000817,58086.0,58085.0,1.57693177]
[1725203135707,0.000817,58086.0,58085.0,1.58293177]
[1725203135934,0.000817,58086.0,58085.0,1.58093177]
[1725203136170,0.002817,58086.0,58085.0,1.58793177]
[1725203136599,0.003817,58086.0,58085.0,1.60393177]
[1725203137262,0.003817,58086.0,58085.0,1.60193177]
[1725203137511,0.003817,58086.0,58085.0,0.408861]
[1725203137729,0.003817,58086.0,58085.0,0.56896577]
[1725203137947,0.003817,58086.0,58085.0,0.91328777]
[1725203138372,0.03082867,58086.0,58085.0,0.91328777]
[1725203139674,0.03082867,58086.0,58085.0,1.25760977]
[1725203139894,0.03082867,58086.0,58085.0,1.60193177]
[1725203140371,0.003817,58086.0,58085.0,1.60193177]
[1725203142606,0.003817,58086.0,58085.0,1.60787839]
[1725203146685,0.003817,58086.0,58085.0,1.60987839]
[1725203148760,0.003817,58086.0,58085.0,1.60787839]
[1725203149756,0.003817,58086.0,58085.0,1.60393177]
[1725203152239,0.003817,58086.0,58085.0,1.60995124]
[1725203156232,0.003817,58086.0,58085.0,1.60393177]
[1725203160619,0.003817,58086.0,58085.0,1.49123177]
[1725203160844,0.003817,58086.0,58085.0,1.40523177]
[1725203163792,0.003817,58086.0,58085.0,1.60463177]
[1725203165566,0.003817,58086.0,58085.0,1.60263177]
[1725203165818,0.003817,58086.0,58085.0,1.94895377]
[1725203166031,0.003817,58086.0,58085.0,2.12205854]
[1725203166252,0.003817,58086.0,58085.0,2.57038054]
[1725203166470,0.003817,58086.0,58085.0,2.72164975]
[1725203166695,0.003817,58086.0,58085.0,2.58938054]
[1725203167137,0.000817,58086.0,58085.0,2.56238054]
[1725203167348,0.000817,58086.0,58085.0,2.59038054]
[1725203167771,0.000817,58086.0,58085.0,2.57638054]
[1725203167992,0.000817,58086.0,58085.0,2.56238054]
[1725203168210,0.000817,58086.0,58085.0,2.57638054]
[1725203168437,0.000817,58086.0,58085.0,2.05295377]
[1725203168647,0.000817,58086.0,58085.0,2.04895377]
[1725203169105,0.000817,58086.0,58085.0,2.57138054]
[1725203169544,0.25948905,58109.0,58108.0,0.185093]
[1725203169789,0.25948905,58109.0,58108.0,0.34519777]
[1725203170010,0.0844,58110.0,58109.0,0.002]
[1725203170242,0.0844,58110.0,58109.0,0.18509]
[1725203170744,0.0844,58110.0,58109.0,0.011]
[1725203170973,0.0844,58110.0,58109.0,0.013]
[1725203171408,0.0844,58110.0,58109.0,0.011]
[1725203171631,0.0844,58110.0,58109.0,0.013]
[1725203172318,0.13980205,58115.0,58111.0,0.172084]
[1725203172548,0.0856,58114.0,58113.0,0.002]
[1725203172765,0.0856,58114.0,58113.0,0.16210477]
[1725203173629,0.0856,58114.0,58113.0,0.33418277]
[1725203173854,0.0856,58114.0,58113.0,0.16010477]
[1725203174067,0.0856,58114.0,58109.0,0.34418]
[1725203174068,0.172087,58110.0,58109.0,0.16910477]
[1725203174282,0.172087,58110.0,58109.0,0.009]
[1725203174283,0.714161,58110.0,58109.0,0.009]
[1725203174705,0.51627,58109.0,58108.0,0.004]
[1725203174964,0.714197,58106.0,58105.0,0.16410477]
[1725203176456,0.0856,58106.0,58105.0,0.16410477]
[1725203176691,0.542098,58106.0,58101.0,0.16010477]
[1725203176955,0.516367,58098.0,58097.0,0.16910477]
[1725203177177,0.516367,58098.0,58097.0,0.16410477]
[1725203177178,0.601967,58098.0,58097.0,0.16410477]
[1725203177631,0.946212,58098.0,58097.0,0.16010477]
[1725203177854,0.601967,58098.0,58097.0,0.16010477]
[1725203178984,0.62897462,58098.0,58097.0,0.16410477]
[1725203179266,0.62897462,58098.0,58097.0,0.17210477]
[1725203179704,0.28472962,58098.0,58097.0,0.17110477]
[1725203179932,0.260722,58098.0,58097.0,0.17110477]
[1725203180127,0.003,58098.0,58097.0,0.17210477]
[1725203180592,0.172115,58101.0,58099.0,0.009]
[1725203181026,0.1979,58102.0,58099.0,0.009]
[1725203181027,0.1719714,58100.0,58099.0,0.009]
[1725203181238,0.860585,58100.0,58099.0,0.16410477]
[1725203181452,0.946185,58100.0,58099.0,0.16410477]
[1725203182541,0.946185,58100.0,58099.0,0.16010477]
[1725203182752,0.950185,58100.0,58099.0,0.16410477]
[1725203182972,0.97719256,58100.0,58099.0,0.16410477]
[1725203183603,0.97319256,58100.0,58099.0,0.16410477]
[1725203184050,0.97819256,58100.0,58099.0,0.16410477]
[1725203184474,0.03200756,58100.0,58099.0,0.16610477]
[1725203184698,0.03200756,58100.0,58099.0,0.34322477]
[1725203184929,0.03200756,58100.0,58099.0,1.19180954]
[1725203185165,0.03200756,58100.0,58099.0,1.22760477]
[1725203185379,0.005,58100.0,58099.0,1.22760477]
[1725203185606,0.000818,58106.0,58105.0,0.529306]
[1725203185830,0.000818,58106.0,58105.0,0.68741077]
[1725203187012,0.000818,58106.0,58105.0,0.68841077]
[1725203187228,0.000818,58106.0,58105.0,1.03461477]
[1725203187438,0.000818,58106.0,58105.0,1.04161477]
[1725203187643,0.000818,58106.0,58105.0,1.03961477]
[1725203188101,0.000818,58106.0,58105.0,1.03861477]
[1725203188568,0.000818,58106.0,58105.0,1.04961477]
[1725203189770,0.000818,58106.0,58105.0,1.24441347]
[1725203190016,0.000818,58106.0,58105.0,1.58861747]
[1725203191947,0.000818,58106.0,58105.0,1.92182147]
[1725203192203,0.000818,58106.0,58105.0,1.93482147]
[1725203192445,0.000818,58106.0,58105.0,1.92782147]
[1725203192678,0.000818,58106.0,58105.0,1.92582147]
[1725203192920,0.000818,58106.0,58105.0,2.02582147]
[1725203193172,0.000818,58106.0,58105.0,2.03982147]
[1725203193435,0.000818,58106.0,58105.0,2.38302547]
[1725203193669,0.000818,58106.0,58105.0,2.05982147]
[1725203194648,0.000818,58106.0,58105.0,2.04582147]
[1725203194905,0.000818,58106.0,58105.0,2.05982147]
[1725203195136,0.000818,58106.0,58105.0,2.06182147]
[1725203195394,0.000818,58106.0,58105.0,2.02982147]
[1725203195630,0.000818,58106.0,58105.0,2.04382147]
[1725203195864,0.000818,58106.0,58105.0,2.05782147]
[1725203196110,0.000818,58106.0,58105.0,2.04382147]
[1725203196368,0.000818,58106.0,58105.0,2.07182147]
[1725203197342,0.000818,58106.0,58105.0,2.04382147]
[1725203197582,0.000818,58106.0,58105.0,2.05782147]
[1725203198100,0.000818,58106.0,58105.0,2.38802547]
[1725203198338,0.000818,58106.0,58105.0,2.05782147]
[1725203198590,0.000818,58106.0,58105.0,2.40202547]
[1725203198826,0.000818,58106.0,58105.0,2.05782147]
[1725203199521,0.000818,58106.0,58105.0,2.06182147]
[1725203200008,0.000818,58106.0,58105.0,2.08482147]
[1725203200472,0.000818,58106.0,58105.0,2.42902547]
[1725203207380,0.000818,58106.0,58105.0,2.06182147]
[1725203208027,0.000818,58106.0,58105.0,2.05782147]
[1725203208698,0.000818,58106.0,58105.0,2.06182147]
[1725203210482,0.000818,58106.0,58105.0,2.05782147]
[1725203210695,0.000818,58106.0,58105.0,2.08082147]
[1725203210910,1e-06,58106.0,58105.0,2.42502547]
[1725203213296,1e-06,58106.0,58105.0,2.76922947]
[1725203213512,1e-06,58106.0,58105.0,2.84569572]
[1725203213974,1e-06,58106.0,58105.0,2.84969572]
[1725203214185,1e-06,58106.0,58105.0,2.42902547]
[1725203219013,1e-06,58106.0,58105.0,2.42502547]
[1725203219227,1e-06,58106.0,58105.0,2.42902547]
[1725203223511,0.447066,58151.0,58136.0,0.011]
[1725203224013,0.172007,58137.0,58136.0,0.011]
[1725203224975,0.0004,58139.0,58138.0,0.004]
[1725203225234,0.0004,58139.0,58138.0,0.011]
[1725203225930,0.0004,58139.0,58138.0,0.009]
[1725203226156,0.516404,58139.0,58138.0,0.004]
[1725203226662,0.678504,58139.0,58138.0,0.004]
[1725203227173,0.678504,58139.0,58137.0,0.004]
[1725203227174,0.1621,58138.0,58137.0,0.004]
[1725203227404,0.1621,58138.0,58130.0,0.007]
[1725203227405,0.262916,58134.0,58133.0,0.004]
[1725203227652,0.0004,58139.0,58130.0,0.16010477]
[1725203227653,0.606957,58133.0,58132.0,0.004]
[1725203227885,0.950995,58133.0,58132.0,0.004]
[1725203228111,0.606957,58133.0,58132.0,0.004]
[1725203228334,0.678157,58133.0,58132.0,0.004]
[1725203228821,0.678166,58132.0,58131.0,0.004]
[1725203229363,0.678166,58132.0,58126.0,0.005]
[1725203229364,0.1621,58131.0,58126.0,0.004]
[1725203229593,1.022285,58127.0,58126.0,0.004]
[1725203230549,1.022285,58127.0,58123.0,0.007]
[1725203230550,0.85026,58126.0,58123.0,0.004]
[1725203230781,0.516136,58124.0,58123.0,0.004]
[1725203231032,1.022327,58124.0,58123.0,0.004]
[1725203231959,1.022327,58124.0,58123.0,0.16810477]
[1725203232188,1.022327,58124.0,58123.0,0.16410477]
[1725203232415,1.1589671,58124.0,58123.0,0.16010477]
[1725203232536,1.1589671,58124.0,58123.0,0.16610477]
[1725203232769,1.022327,58124.0,58123.0,0.17010477]
[1725203233203,1.022327,58124.0,58123.0,0.16810477]
[1725203234179,1.366418,58124.0,58123.0,0.16810477]
[1725203234399,1.366418,58124.0,58123.0,0.17210477]
[1725203235336,0.36114102,58124.0,58123.0,0.17210477]
[1725203235578,0.334145,58124.0,58123.0,0.17210477]
[1725203237040,0.1621,58124.0,58123.0,0.17910477]
[1725203237266,0.0712,58124.0,58123.0,0.35115277]
[1725203238186,0.0712,58124.0,58123.0,0.34515277]
[1725203238418,0.0712,58124.0,58123.0,0.17210477]
[1725203238897,0.0712,58124.0,58123.0,0.16610477]
[1725203239136,0.0712,58124.0,58123.0,0.69824977]
[1725203239620,0.072018,58124.0,58123.0,0.34315277]
[1725203239865,0.000818,58124.0,58123.0,0.69024977]
[1725203240084,0.000818,58124.0,58123.0,1.04434677]
[1725203240333,0.000818,58124.0,58123.0,1.38844377]
[1725203240552,0.000818,58124.0,58123.0,1.46934377]
[1725203240790,0.000818,58124.0,58123.0,1.56454377]
[1725203241460,0.000818,58124.0,58123.0,1.55654377]
[1725203241676,0.000818,58124.0,58123.0,1.56754377]
[1725203242207,0.000818,58124.0,58123.0,1.56354377]
[1725203242444,0.000818,58124.0,58123.0,1.56554377]
[1725203242657,0.000818,58124.0,58123.0,1.59154377]
[1725203242879,0.000818,58124.0,58123.0,1.59354377]
[1725203243605,0.000818,58124.0,58123.0,1.59928227]
[1725203244744,0.000818,58124.0,58123.0,1.59728227]
[1725203245195,0.000818,58124.0,58123.0,1.59928227]
[1725203246104,0.000818,58124.0,58123.0,1.59728227]
[1725203247219,0.000818,58124.0,58123.0,1.59928227]
[1725203247633,0.000818,58124.0,58123.0,1.59728227]
[1725203247846,0.000818,58124.0,58123.0,1.59928227]
[1725203248060,0.000818,58124.0,58123.0,1.59728227]
[1725203248266,0.000818,58124.0,58123.0,1.59928227]
[1725203248732,0.000818,58124.0,58123.0,1.94337927]
[1725203249807,0.000818,58124.0,58123.0,1.94637927]
[1725203250019,0.000818,58124.0,58123.0,2.04637927]
[1725203250879,0.000818,58124.0,58123.0,2.20648404]
[1725203251091,0.000818,58124.0,58123.0,2.05637927]
[1725203251531,0.000818,58124.0,58123.0,2.04237927]
[1725203251748,0.000818,58124.0,58123.0,2.04937927]
[1725203251968,0.000818,58124.0,58123.0,2.05027797]
[1725203252207,0.000818,58124.0,58123.0,2.18238274]
[1725203252444,0.000818,58124.0,58123.0,2.19638274]
[1725203252683,0.000818,58124.0,58123.0,2.21038274]
[1725203253538,0.000818,58124.0,58123.0,2.55447974]
[1725203253778,0.000818,58124.0,58123.0,2.55847974]
[1725203254028,0.000818,58124.0,58123.0,2.58147974]
[1725203254261,0.000818,58124.0,58123.0,2.68357434]
[1725203254504,0.000818,58124.0,58123.0,2.69509106]
[1725203254752,0.000818,58124.0,58123.0,2.55347974]
[1725203254987,0.000818,58124.0,58123.0,2.56747974]
[1725203255208,0.000818,58124.0,58123.0,2.70906521]
[1725203255426,0.000818,58124.0,58123.0,2.69506521]
[1725203255637,0.000818,58124.0,58123.0,2.70906521]
[1725203255850,0.000818,58124.0,58123.0,2.59547974]
[1725203256078,1e-06,58124.0,58123.0,3.06713791]
[1725203256315,1e-06,58124.0,58123.0,3.06313791]
[1725203256556,1e-06,58124.0,58123.0,2.93557674]
[1725203257841,1e-06,58124.0,58123.0,2.92157674]
[1725203258046,1e-06,58124.0,58123.0,2.90757674]
[1725203258467,1e-06,58124.0,58123.0,2.91157674]
[1725203258681,1e-06,58124.0,58123.0,2.90757674]
[1725203258913,1e-06,58124.0,58123.0,2.93957674]
[1725203259136,1e-06,58124.0,58123.0,2.93557674]
[1725203259344,1e-06,58124.0,58123.0,2.93957674]
[1725203259562,1e-06,58124.0,58123.0,2.93557674]
[1725203259778,1e-06,58124.0,58123.0,2.93957674]
[1725203259998,1e-06,58124.0,58123.0,2.93557674]
[1725203260228,1e-06,58124.0,58123.0,3.0629092]
[1725203260463,1e-06,58124.0,58123.0,3.0669092]
[1725203261542,1e-06,58124.0,58123.0,2.93957674]
[1725203261745,1e-06,58124.0,58123.0,3.0669092]
[1725203262155,1e-06,58124.0,58123.0,2.93957674]
[1725203262582,0.000817,58136.0,58135.0,1.578117]
[1725203262944,0.000817,58136.0,58135.0,2.20492654]
[1725203263376,0.000817,58136.0,58135.0,2.54895254]
[1725203263826,0.000817,58136.0,58135.0,2.54495254]
[1725203265396,0.000817,58136.0,58135.0,2.57295254]
[1725203265615,0.47367489,58156.0,58155.0,0.182954]
[1725203265840,0.08358,58157.0,58155.0,0.182954]
[1725203265841,0.08358,58157.0,58156.0,0.180951]
[1725203266068,0.08358,58157.0,58156.0,1.21809578]
[1725203266304,0.08358,58157.0,58156.0,1.214657]
[1725203266528,0.00818,58157.0,58156.0,1.216657]
[1725203268274,0.17978,58157.0,58156.0,0.011]
[1725203268524,0.17978,58157.0,58156.0,0.17310477]
[1725203268748,0.17978,58157.0,58156.0,0.18710477]
[1725203269193,0.17978,58157.0,58156.0,0.19910477]
[1725203269404,0.17978,58157.0,58156.0,0.18710477]
[1725203269645,0.17978,58157.0,58156.0,0.17310477]
[1725203269862,0.17978,58157.0,58156.0,0.18910477]
[1725203270106,0.17978,58157.0,58156.0,0.025]
[1725203270317,1.03952,58157.0,58156.0,0.02]
[1725203271201,0.351728,58157.0,58156.0,0.012]
[1725203271415,0.17978,58157.0,58156.0,0.011]
[1725203271634,0.17978,58157.0,58156.0,0.027]
[1725203271849,0.351728,58157.0,58156.0,0.027]
[1725203272033,0.351728,58157.0,58156.0,0.021]
[1725203272423,0.351728,58157.0,58156.0,0.027]
[1725203274846,0.524406,58159.0,58158.0,0.002]
[1725203275303,0.00858,58159.0,58158.0,0.002]
[1725203275960,0.00858,58159.0,58158.0,0.01]
[1725203276167,0.00858,58159.0,58158.0,0.014]
[1725203280748,0.180522,58159.0,58158.0,0.014]
[1725203283133,0.180522,58159.0,58158.0,0.012]
[1725203283134,0.86829,58159.0,58158.0,0.012]
[1725203284428,0.00858,58159.0,58158.0,0.014]
[1725203285101,0.00858,58159.0,58158.0,0.882725]
[1725203287282,0.00858,58159.0,58158.0,1.310815]
[1725203287493,0.00858,58159.0,58158.0,1.411315]
[1725203287915,0.00858,58159.0,58158.0,1.403315]
[1725203288354,0.00858,58159.0,58158.0,1.413315]
[1725203288567,0.00858,58159.0,58158.0,1.409315]
[1725203288779,0.00858,58159.0,58158.0,1.399315]
[1725203288994,0.00858,58159.0,58158.0,1.405315]
[1725203289240,0.00858,58159.0,58158.0,1.426315]
[1725203289445,0.00858,58159.0,58158.0,1.424315]
[1725203289675,0.00858,58159.0,58158.0,1.410315]
[1725203289898,0.00858,58159.0,58158.0,1.424315]
[1725203290120,0.00858,58159.0,58158.0,1.762205]
[1725203290339,0.00858,58159.0,58158.0,1.776205]
[1725203291055,0.00858,58159.0,58158.0,1.790205]
[1725203292547,0.00858,58159.0,58158.0,1.446315]
[1725203292774,0.00858,58159.0,58158.0,1.443315]
[1725203293468,0.00858,58159.0,58158.0,1.60641977]
[1725203293680,0.00858,58159.0,58158.0,1.446315]
[1725203294104,0.00858,58159.0,58158.0,1.790205]
[1725203294321,0.00858,58159.0,58158.0,1.890205]
[1725203294585,0.00858,58159.0,58158.0,1.546315]
[1725203294822,0.00858,58159.0,58158.0,1.548315]
[1725203297231,0.00858,58159.0,58158.0,1.892205]
[1725203297456,0.00858,58159.0,58158.0,1.548315]
[1725203297680,0.00858,58159.0,58158.0,1.892205]
[1725203297899,0.00858,58159.0,58158.0,1.548315]
[1725203298552,0.00858,58159.0,58158.0,1.543315]
[1725203299461,0.00858,58159.0,58158.0,1.098925]
[1725203300779,0.00858,58159.0,58158.0,1.096925]
[1725203301009,0.00858,58159.0,58158.0,1.098925]
[1725203302872,0.00858,58159.0,58158.0,1.096925]
[1725203303103,0.00858,58159.0,58158.0,1.098925]
[1725203303329,0.00858,58159.0,58158.0,1.10488301]
[1725203304887,0.00858,58159.0,58158.0,0.053]
[1725203305122,0.00858,58159.0,58158.0,0.73093977]
[1725203305337,0.00858,58159.0,58158.0,0.72893977]
[1725203306270,0.00858,58159.0,58158.0,0.70093977]
[1725203306737,0.00858,58159.0,58158.0,0.71393977]
[1725203307877,0.00858,58159.0,58158.0,0.79703977]
[1725203308296,0.00858,58159.0,58158.0,0.78303977]
[1725203308941,0.00858,58159.0,58158.0,1.12692977]
[1725203309159,0.00858,58159.0,58158.0,1.59081977]
[1725203309387,0.00858,58159.0,58158.0,1.58881977]
[1725203309602,0.00858,58159.0,58158.0,1.57481977]
[1725203310039,0.00858,58159.0,58158.0,1.58881977]
[1725203310486,0.00858,58159.0,58158.0,1.57781977]
[1725203310700,0.00858,58159.0,58158.0,1.58981977]
[1725203310913,0.00858,58159.0,58158.0,1.59181977]
[1725203311125,0.00858,58159.0,58158.0,1.58981977]
[1725203311331,0.00858,58159.0,58158.0,1.57581977]
[1725203311784,0.00858,58159.0,58158.0,1.59181977]
[1725203312226,0.00858,58159.0,58158.0,1.57781977]
[1725203312472,0.00858,58159.0,58158.0,1.23392977]
[1725203313236,0.00858,58159.0,58158.0,1.24792977]
[1725203313448,0.00858,58159.0,58158.0,1.23392977]
[1725203313665,0.00858,58159.0,58158.0,1.23192977]
[1725203313897,0.00858,58159.0,58158.0,1.24792977]
[1725203314129,0.00858,58159.0,58158.0,1.24592977]
[1725203314771,0.00858,58159.0,58158.0,1.59181977]
[1725203314985,0.00858,58159.0,58158.0,1.58981977]
[1725203317045,0.00858,58159.0,58158.0,1.59681977]
[1725203317293,0.00858,58159.0,58158.0,1.69481977]
[1725203317474,0.00858,58159.0,58158.0,2.02470977]
[1725203317673,0.00858,58159.0,58158.0,2.01270977]
[1725203317879,0.00858,58159.0,58158.0,2.03870977]
[1725203318281,0.00858,58159.0,58158.0,2.02470977]
[1725203318688,0.00858,58159.0,58158.0,2.04070977]
[1725203318940,0.00858,58159.0,58158.0,2.03870977]
[1725203319385,0.00858,58159.0,58158.0,2.54270454]
[1725203319599,0.00858,58159.0,58158.0,2.56170454]
[1725203319714,0.00858,58159.0,58158.0,2.63816258]
[1725203319913,0.00858,58159.0,58158.0,2.57970454]
[1725203320124,0.00858,58159.0,58158.0,2.6776486]
[1725203320341,0.50540786,58188.0,58178.0,0.002]
[1725203320574,0.50540786,58188.0,58178.0,1.55360677]
[1725203320779,0.00817,58195.0,58178.0,1.90237877]
[1725203320984,0.00817,58195.0,58178.0,1.90437877]
[1725203321644,0.00817,58195.0,58178.0,1.91337877]
[1725203322109,0.00817,58195.0,58178.0,1.91035605]
[1725203322341,0.00817,58195.0,58178.0,1.57558405]
[1725203322812,0.180007,58195.0,58178.0,1.57558405]
[1725203323036,0.180007,58195.0,58178.0,1.57358405]
[1725203323246,0.171839,58194.0,58178.0,1.57558405]
[1725203323478,0.171839,58194.0,58178.0,1.58958405]
[1725203323941,0.171843,58193.0,58178.0,1.58958405]
[1725203324575,0.00817,58195.0,58178.0,0.034]
[1725203324576,0.859815,58179.0,58178.0,0.034]
[1725203324807,0.27692952,58179.0,58178.0,0.19910477]
[1725203325017,0.44881252,58179.0,58178.0,0.19910477]
[1725203325220,0.171883,58179.0,58178.0,0.19910477]
[1725203325444,0.172701,58179.0,58178.0,0.18510477]
[1725203325671,0.000818,58179.0,58178.0,0.19910477]
[1725203325878,0.000818,58179.0,58178.0,0.18710477]
[1725203326727,0.000818,58179.0,58178.0,0.19210477]
[1725203327140,0.000818,58179.0,58178.0,0.17310477]
[1725203327372,0.000818,58179.0,58178.0,0.17110477]
[1725203327586,0.516467,58179.0,58178.0,0.18010477]
[1725203327807,0.516467,58179.0,58178.0,0.18510477]
[1725203328077,0.000818,58179.0,58178.0,0.17610477]
[1725203328309,0.02778653,58179.0,58178.0,0.36099077]
[1725203328751,0.000818,58179.0,58178.0,0.70476277]
[1725203329191,0.000818,58179.0,58178.0,0.70676277]
[1725203329456,0.000818,58179.0,58178.0,0.70176277]
[1725203329704,0.000818,58179.0,58178.0,0.69976277]
[1725203329950,0.000818,58179.0,58178.0,0.71076277]
[1725203330681,0.000818,58179.0,58178.0,0.19310477]
[1725203330926,0.172701,58179.0,58178.0,0.19310477]
[1725203331372,0.516467,58179.0,58178.0,0.033]
[1725203331604,0.516467,58179.0,58178.0,0.19310477]
[1725203331605,0.172701,58179.0,58178.0,0.19310477]
[1725203331829,0.19966929,58179.0,58178.0,0.19310477]
[1725203332089,0.172701,58179.0,58178.0,0.033]
[1725203332327,0.516467,58179.0,58178.0,0.19310477]
[1725203334867,0.172701,58179.0,58178.0,0.19310477]
[1725203335150,0.000818,58179.0,58178.0,0.19310477]
[1725203335942,0.000818,58179.0,58178.0,0.36499077]
[1725203336839,0.000818,58179.0,58178.0,0.44399077]
[1725203337085,0.000818,58179.0,58178.0,0.78866257]
[1725203337330,0.000818,58179.0,58178.0,1.13243457]
[1725203340612,0.000818,58179.0,58178.0,0.0338998]
[1725203340836,0.000818,58179.0,58178.0,0.19400457]
[1725203341278,0.000818,58179.0,58178.0,0.36589057]
[1725203341712,0.000818,58179.0,58178.0,0.36789057]
[1725203342155,0.000818,58179.0,58178.0,0.19400457]
[1725203342843,0.172701,58179.0,58178.0,0.19400457]
[1725203344294,0.000818,58179.0,58178.0,0.19400457]
[1725203345111,0.172701,58179.0,58178.0,0.19400457]
[1725203345315,0.860233,58179.0,58178.0,0.0228998]
[1725203345523,1.203999,58179.0,58178.0,0.0228998]
[1725203346300,1.203999,58179.0,58178.0,0.0098998]
[1725203346504,1.3482169,58179.0,58178.0,0.0098998]
[1725203346708,1.3482169,58179.0,58178.0,0.0148998]
[1725203347123,1.3482169,58179.0,58178.0,0.0098998]
[1725203347338,1.226999,58179.0,58178.0,0.0098998]
[1725203347540,1.226999,58179.0,58178.0,0.0138998]
[1725203348175,1.226999,58179.0,58178.0,0.0048998]
[1725203348512,1.228999,58179.0,58178.0,0.0058998]
[1725203349163,1.205999,58179.0,58178.0,0.0018998]
[1725203349571,1.2844877,58179.0,58178.0,0.0018998]
[1725203349774,1.3074877,58179.0,58178.0,0.0018998]
[1725203349981,1.4074877,58179.0,58178.0,0.0018998]
[1725203350191,1.4044877,58179.0,58178.0,0.0008998]
[1725203350394,1.332999,58179.0,58178.0,0.0018998]
[1725203350547,1.336999,58179.0,58178.0,0.0018998]
[1725203350750,1.336999,58179.0,58178.0,0.0008998]
[1725203350966,1.336999,58179.0,58178.0,0.0018998]
[1725203350967,1.679765,58179.0,58178.0,0.0018998]
[1725203351225,2.01279698,58179.0,58178.0,0.0018998]
[1725203351454,2.02991732,58179.0,58178.0,0.0018998]
[1725203351654,2.37368332,58179.0,58178.0,0.0018998]
[1725203352073,2.93987319,58179.0,58178.0,0.0018998]
[1725203352292,2.86480864,58179.0,58178.0,0.0018998]
[1725203352743,2.87295491,58179.0,58178.0,0.0018998]
[1725203352957,5.15786864,58179.0,58178.0,0.0018998]
[1725203353163,5.15186864,58179.0,58178.0,0.0008998]
[1725203353377,5.31129793,58179.0,58178.0,0.0018998]
[1725203353600,5.23193319,58179.0,58178.0,8e-07]
[1725203353823,1.551401,58162.0,58161.0,0.50540786]
[1725203354047,2.2421911,58162.0,58161.0,0.50540786]
[1725203354251,1.206615,58158.0,58157.0,0.0008987]
[1725203354469,1.329615,58158.0,58157.0,0.0008987]
[1725203354948,1.674505,58158.0,58157.0,0.0008987]
[1725203355214,3.653905,58158.0,58157.0,0.0008987]
[1725203355457,4.30093364,58158.0,58157.0,0.0008987]
[1725203355694,4.68564751,58158.0,58157.0,7e-07]
[1725203355916,4.68564751,58158.0,58156.0,4e-07]
[1725203355917,4.331848,58157.0,58156.0,4e-07]
[1725203356146,2.4384718,58157.0,58156.0,4e-07]
[1725203356388,2.40314787,58157.0,58156.0,4e-07]
[1725203356625,2.53146819,58157.0,58156.0,4e-07]
[1725203356843,2.49064432,58157.0,58156.0,4e-07]
[1725203357288,2.6073246,58157.0,58156.0,4e-07]
[1725203357529,2.65232748,58157.0,58156.0,4e-07]
[1725203357789,2.66632748,58157.0,58156.0,4e-07]
[1725203358023,2.65232748,58157.0,58156.0,4e-07]
[1725203358233,2.66632748,58157.0,58156.0,4e-07]
[1725203358445,1.74753488,58157.0,58156.0,4e-07]
[1725203358658,1.72453488,58157.0,58156.0,4e-07]
[1725203359776,1.73853488,58157.0,58156.0,4e-07]
[1725203360645,1.29463888,58157.0,58156.0,4e-07]
[1725203360860,1.27662381,58157.0,58156.0,4e-07]
[1725203361059,1.40486209,58157.0,58156.0,4e-07]
[1725203361276,1.04396609,58157.0,58156.0,4e-07]
[1725203361481,0.58483181,58157.0,58156.0,4e-07]
[1725203361922,0.529844,58157.0,58156.0,4e-07]
[1725203363069,0.515844,58157.0,58156.0,4e-07]
[1725203363325,0.625844,58157.0,58156.0,4e-07]
[1725203363590,0.96974,58157.0,58156.0,4e-07]
[1725203363842,0.615844,58157.0,58156.0,4e-07]
[1725203364239,0.104,58157.0,58156.0,4e-07]
[1725203364482,0.104,58157.0,58156.0,0.0785004]
[1725203364694,0.004,58157.0,58156.0,0.0785004]
[1725203366058,0.175948,58157.0,58156.0,0.0785004]
[1725203366271,0.171948,58157.0,58156.0,0.0785004]
[1725203366532,0.175948,58157.0,58156.0,0.0785004]
[1725203366953,0.34388,58160.0,58156.0,0.0785004]
[1725203367175,0.171948,58157.0,58156.0,0.0785004]
[1725203367385,0.172948,58157.0,58156.0,0.0845004]
[1725203367827,0.271944,58159.0,58156.0,0.0785004]
[1725203368045,0.271944,58159.0,58157.0,0.0968]
[1725203368287,0.171945,58158.0,58157.0,0.0968]
[1725203368506,0.171945,58158.0,58157.0,0.25690477]
[1725203368946,0.515835,58158.0,58157.0,0.25690477]
[1725203369389,0.171945,58158.0,58157.0,0.25690477]
[1725203369821,0.12697983,58159.0,58157.0,0.25890477]
[1725203370028,0.29892283,58159.0,58157.0,0.25890477]
[1725203370508,0.29892283,58159.0,58157.0,0.25790477]
[1725203371187,0.29992283,58159.0,58157.0,0.26290477]
[1725203371414,0.30074083,58159.0,58157.0,0.26290477]